[Event "8th Gibraltar U16-Junior 2018"]
[Site "Caleta"]
[Date "2018.08.18"]
[Round "3"]
[White "Jain, Anushree"]
[Black "Shigaeva, Arina"]
[Result "0-1"]
[ECO "C50"]
[WhiteElo "1006"]
[BlackElo "1271"]
[Annotator "NA RC"]
[PlyCount "104"]
[EventDate "2018.08.17"]
[EventType "swiss"]
[EventCountry "GGB"]
[SourceTitle "playchess.com"]
[Source "ChessBase"]
[SourceQuality "1"]
[TimeControl "6600+10"]

1. e4 {[%emt 0:00:00]} e5 {[%emt 0:00:00]} 2. Nf3 {[%emt 0:00:21]} Nc6 {[%emt 0:00:11]} 3. Bc4 {[%emt 0:00:22]} Bc5 {[%emt 0:01:00]} 4. d3 {[%emt 0:01:01]} Nf6 {[%emt 0:00:57]} 5. Nc3 {[%emt 0:01:30]} d6 {[%emt 0:03:48]} 6. Be3 {[%emt 0:01:24]} Nd4 {[%emt 0:07:52]} 7. Bd2 {[%emt 0:09:41]} Bg4 {[%emt 0:09:29]} 8. h3 {[%emt 0:04:52]} Nxf3+ {[%emt 0:00:36]} 9. gxf3 {[%emt 0:04:32]} Be6 {[%emt 0:14:38]} 10. b3 {[%emt 0:07:51]} d5 {[%emt 0:03:34]} 11. exd5 {[%emt 0:02:42]} Nxd5 {[%emt 0:00:54]} 12. Qe2 {[%emt 0:04:48]} Bd4 {[%emt 0:04:02]} 13. Bxd5 {[%emt 0:04:05]} Bxd5 {[%emt 0:00:59]} 14. O-O-O {[%emt 0:00:48]} Bc6 {[%emt 0:04:17]} 15. Rhg1 {[%emt 0:06:58]} Qf6 {[%emt 0:09:16]} 16. Rg3 {[%emt 0:04:06]} h6 {[%emt 0:05:48]} 17. Rdg1 {[%emt 0:08:04]} g5 {[%emt 0:03:43]} 18. Rg4 {[%emt 0:04:33]} O-O-O {[%emt 0:09:07]} 19. a4 {[%emt 0:02:23]} Bxf3 {[%emt 0:03:11]} 20. Qe1 {[%emt 0:01:47]} Bxg4 {[%emt 0:00:51]} 21. Rxg4 {[%emt 0:00:18]} Qxf2 {[%emt 0:03:23]} 22. Qh1 {[%emt 0:03:56]} Be3 {[%emt 0:05:20]} 23. Bxe3 {[%emt 0:03:54]} Qxe3+ {[%emt 0:00:28]} 24. Kb2 {[%emt 0:02:59]} c6 {[%emt 0:04:39]} 25. Qh2 {[%emt 0:04:06]} f5 {[%emt 0:02:31]} 26. Rg2 {[%emt 0:01:14]} f4 {[%emt 0:03:44]} 27. Re2 {[%emt 0:01:30]} Qd4 {[%emt 0:02:03]} 28. Re4 {[%emt 0:02:48]} Qd6 {[%emt 0:00:49]} 29. Re1 {[%emt 0:04:26]} Rde8 {[%emt 0:02:13]} 30. Qg2 {[%emt 0:01:50]} Qg6 {[%emt 0:00:46]} 31. Ne4 {[%emt 0:01:52]} Rhg8 {[%emt 0:01:05]} 32. Re2 {[%emt 0:02:16]} h5 {[%emt 0:00:14]} 33. Qg1 {[%emt 0:01:32]} b6 {[%emt 0:00:50]} 34. c4 {[%emt 0:00:25]} g4 {[%emt 0:00:46]} 35. hxg4 {[%emt 0:01:08]} hxg4 {[%emt 0:00:08]} 36. b4 {[%emt 0:03:31]} Rd8 {[%emt 0:00:48]} 37. Kc3 {[%emt 0:00:03]} g3 {[%emt 0:00:18]} 38. Qg2 {[%emt 0:00:45]} Rh8 {[%emt 0:00:27]} 39. c5 {[%emt 0:00:20]} Kc7 {[%emt 0:00:05]} 40. a5 {[%emt 0:01:13]} bxa5 {[%emt 0:00:18]} 41. bxa5 {[%emt 0:00:06]} Rh2 {[%emt 0:00:10]} 42. Qf1 {[%emt 0:00:52]} Rxe2 {[%emt 0:00:12]} 43. Qxe2 {[%emt 0:00:17]} g2 {[%emt 0:00:20]} 44. Qd2 {[%emt 0:01:13]} g1=Q {[%emt 0:00:10]} 45. Qc2 {[%emt 0:00:18]} Qd4+ {[%emt 0:00:02]} 46. Kd2 {[%emt 0:00:07]} Qg2+ {[%emt 0:00:03]} 47. Kc1 {[%emt 0:00:08]} Qf1+ {[%emt 0:00:11]} 48. Qd1 {[%emt 0:00:14]} Qxd1+ {[%emt 0:00:03]} 49. Kxd1 {[%emt 0:00:03]} Qxd3+ {[%emt 0:00:03]} 50. Ke1 {[%emt 0:00:06]} Qxe4+ {[%emt 0:00:02]} 51. Kf1 {[%emt 0:00:01]} Qc2 {[%emt 0:00:06]} 52. a6 {[%emt 0:00:02]} Rd1# {[%emt 0:00:14]} 0-1

[Event "8th Gibraltar U16-Junior 2018"]
[Site "Caleta"]
[Date "2018.08.19"]
[Round "4"]
[White "Cuellar Montes, Alejandro"]
[Black "Carroll, Thomas"]
[Result "1-0"]
[ECO "A70"]
[WhiteElo "2074"]
[BlackElo "1965"]
[Annotator "NA RC"]
[PlyCount "105"]
[EventDate "2018.08.17"]
[EventType "swiss"]
[EventCountry "GGB"]
[SourceTitle "playchess.com"]
[Source "ChessBase"]
[SourceQuality "1"]
[TimeControl "6600+10"]

1. d4 {[%emt 0:00:00]} Nf6 {[%emt 0:00:00]} 2. c4 {[%emt 0:00:02]} c5 {[%emt 0:00:00]} 3. d5 {[%emt 0:00:05]} e6 {[%emt 0:00:00]} 4. Nc3 {[%emt 0:00:07]} exd5 {[%emt 0:00:04]} 5. cxd5 {[%emt 0:00:07]} d6 {[%emt 0:00:02]} 6. e4 {[%emt 0:00:10]} g6 {[%emt 0:00:07]} 7. Bd3 {[%emt 0:00:05]} Bg7 {[%emt 0:00:05]} 8. h3 {[%emt 0:00:04]} O-O {[%emt 0:00:07]} 9. Nf3 {[%emt 0:00:05]} b5 {[%emt 0:00:05]} 10. Nxb5 {[%emt 0:00:21]} Re8 {[%emt 0:00:19]} 11. O-O {[%emt 0:00:33]} Nxe4 {[%emt 0:00:06]} 12. Re1 {[%emt 0:00:07]} a6 {[%emt 0:00:24]} 13. Na3 {[%emt 0:00:51] A70: Modern Benoni: 6 e4 g6 7 Nf3} Nf6 {[%emt 0:00:20]} 14. Bg5 {[%emt 0:03:40]} (14. Rxe8+ Nxe8 15. Nc4 Nd7 16. Bf4 Ndf6 17. Ne3 Nh5 18. Bg5 Bf6 19. h4 Rb8 20. b3 Bxg5 21. hxg5 f6 22. gxf6 Qxf6 23. Rc1 Nc7 24. Rc4 Nf4 25. Qd2 Bd7 26. Ng4 Bxg4 27. Rxf4 Qa1+ 28. Bf1 Bxf3 29. Rxf3 Re8 30. Qf4 {1-0 (30) Mamedyarov,S (2809)-Svidler,P (2760) Moscow 2018}) 14... Rxe1+ {[%emt 0:08:53]} 15. Nxe1 $146 {[%emt 0:04:55]} ({Predecessor:} 15. Qxe1 Bb7 16. Be4 Nbd7 17. Nc4 Nb6 18. b3 Qc7 19. Bxf6 Bxf6 20. Rd1 Nxc4 21. bxc4 {½-½ (40) Adamczewski,M (1903)-Zylka,S (2065) Karpacz 2015}) 15... Nbd7 {[%emt 0:06:24]} 16. Nc4 {[%emt 0:03:55]} Nb6 {[%emt 0:01:10]} 17. Qf3 {[%emt 0:02:28]} Nxc4 {[%emt 0:04:48]} 18. Bxc4 {[%emt 0:00:11]} Qe7 {[%emt 0:13:51]} 19. Nd3 {[%emt 0:16:38]} Qe4 {[%emt 0:01:12]} 20. Qxe4 {[%emt 0:02:08]} Nxe4 {[%emt 0:00:04]} 21. Bf4 {[%emt 0:01:12]} g5 {[%emt 0:00:42]} 22. Be3 {[%emt 0:00:55]} h6 {[%emt 0:06:14]} 23. Re1 {[%emt 0:10:54]} Bf5 {[%emt 0:05:57]} 24. g4 {[%emt 0:29:52]} Bg6 $11 {[%emt 0:10:52]} 25. f4 {[%emt 0:01:11]} f5 {[%emt 0:03:43]} 26. b3 {[%emt 0:10:10]} Bc3 {[%emt 0:04:49]} 27. Rd1 {[%emt 0:06:34]} a5 {[%emt 0:05:46]} 28. Nf2 {[%emt 0:02:26]} Nxf2 {[%emt 0:16:50]} 29. Kxf2 {[%emt 0:00:08]} Rf8 {[%emt 0:04:34]} 30. Kg3 {[%emt 0:02:02]} fxg4 {[%emt 0:01:22]} 31. hxg4 {[%emt 0:00:25]} gxf4+ {[%emt 0:01:11]} 32. Bxf4 {[%emt 0:00:11]} Rf6 {[%emt 0:00:59]} 33. Rh1 {[%emt 0:02:41]} Be4 {[%emt 0:03:02]} 34. Rc1 {[%emt 0:05:25]} Bb4 {[%emt 0:03:04]} 35. a3 {[%emt 0:00:55]} Bxa3 {[%emt 0:03:26]} 36. Re1 {[%emt 0:00:01]} Bg6 {[%emt 0:01:09]} 37. Re6 {[%emt 0:00:44]} Kf7 {[%emt 0:00:41]} 38. Rxf6+ {[%emt 0:01:46]} Kxf6 {[%emt 0:00:03]} 39. Bxd6 {[%emt 0:00:03]} h5 {[%emt 0:00:24]} 40. g5+ {[%emt 0:01:44]} Kf7 {[%emt 0:02:06]} 41. Bc7 {[%emt 0:00:13]} Ke7 {[%emt 0:00:47]} 42. d6+ {[%emt 0:00:07]} Kd7 {[%emt 0:00:10]} 43. Bb5+ {[%emt 0:00:13]} Kc8 {[%emt 0:00:04]} 44. Bxa5 {[%emt 0:00:11]} Bf5 {[%emt 0:00:08]} 45. Kf4 {[%emt 0:00:20]} Bd7 {[%emt 0:00:29]} 46. Ba6+ {[%emt 0:00:01]} Kb8 {[%emt 0:00:00]} 47. g6 {[%emt 0:00:21]} Bb2 {[%emt 0:00:11]} 48. Kg5 {[%emt 0:00:10]} h4 {[%emt 0:00:35]} 49. Kxh4 {[%emt 0:00:09]} Be6 {[%emt 0:00:24]} 50. Kg5 {[%emt 0:00:09]} Bc1+ {[%emt 0:00:15]} 51. Kf6 {[%emt 0:00:06]} Bxb3 {[%emt 0:00:04]} 52. d7 {[%emt 0:00:03]} Bb2+ {[%emt 0:00:11]} 53. Ke7 {[%emt 0:00:06]} 1-0

[Event "8th Gibraltar U16-Junior 2018"]
[Site "Caleta"]
[Date "2018.08.19"]
[Round "4"]
[White "Onslow, Alfie"]
[Black "Weersing, Sarah"]
[Result "1-0"]
[ECO "C08"]
[WhiteElo "2040"]
[BlackElo "1608"]
[Annotator "NA RC"]
[PlyCount "124"]
[EventDate "2018.08.17"]
[EventType "swiss"]
[EventCountry "GGB"]
[SourceTitle "playchess.com"]
[Source "ChessBase"]
[SourceQuality "1"]
[TimeControl "6600+10"]

1. e4 {[%emt 0:00:00]} e6 {[%emt 0:00:00]} 2. d4 {[%emt 0:00:10]} d5 {[%emt 0:00:04]} 3. Nd2 {[%emt 0:00:08]} c5 {[%emt 0:01:10]} 4. exd5 {[%emt 0:00:21]} exd5 {[%emt 0:01:15]} 5. Ngf3 {[%emt 0:00:07]} Nf6 {[%emt 0:00:39]} 6. Bb5+ {[%emt 0:00:19]} Bd7 7. Bxd7+ {[%emt 0:00:13]} Nbxd7 {[%emt 0:03:23]} 8. O-O {[%emt 0:00:09]} Be7 {[%emt 0:00:41]} 9. dxc5 {[%emt 0:01:31]} Nxc5 {[%emt 0:02:18]} 10. Re1 {[%emt 0:01:31]} O-O {[%emt 0:02:27]} 11. Nf1 {[%emt 0:03:43] C08: French Tarrasch: 3...c5 4 exd5 exd5 sidelines} Ne6 {[%emt 0:05:43]} (11... Re8 12. Be3 Qd7 13. c3 a5 14. Bd4 Rac8 15. Ne3 Nfe4 16. Ne5 Qd8 17. Qh5 g6 18. Qf3 f5 19. Nxf5 gxf5 20. Qxf5 {½-½ (91) Rublevsky,S (2683)-Savchenko,B (2585) Sochi 2017}) 12. c3 {[%emt 0:05:56]} h6 $146 {[%emt 0:04:20]} ({Predecessor:} 12... b5 13. Qe2 Qb6 14. Be3 Bc5 15. a3 a5 16. Bxc5 Nxc5 17. Ne3 g6 18. Rad1 Rfd8 {½-½ (76) Gavrilov,A (2491)-Savchenko,B (2559) Kazan 2014}) 13. h3 {[%emt 0:01:55]} Bc5 {[%emt 0:02:02]} 14. Be3 {[%emt 0:01:32]} Qb6 {[%emt 0:04:30]} 15. Bxc5 {[%emt 0:03:39]} Qxc5 {[%emt 0:02:49]} 16. Ne3 {[%emt 0:01:16]} Rfd8 {[%emt 0:05:31]} 17. Nf5 {[%emt 0:03:02]} Qb6 {[%emt 0:04:00]} 18. Qc2 {[%emt 0:03:23]} Kf8 {[%emt 0:10:59]} 19. Re3 {[%emt 0:14:39]} Rac8 {[%emt 0:05:12]} 20. Qb3 {[%emt 0:02:35]} Qxb3 {[%emt 0:06:03]} 21. axb3 {[%emt 0:00:01]} a6 {[%emt 0:00:25]} 22. b4 {[%emt 0:00:48]} h5 {[%emt 0:04:58]} 23. N5d4 {[%emt 0:03:41]} Nxd4 {[%emt 0:01:00]} 24. Nxd4 {[%emt 0:00:02]} g6 {[%emt 0:01:21]} 25. Kf1 {[%emt 0:04:25]} Rd7 {[%emt 0:05:42]} 26. Ree1 {[%emt 0:07:48]} Re7 {[%emt 0:01:24]} 27. Red1 {[%emt 0:01:01]} Ke8 {[%emt 0:01:33]} 28. Nb3 {[%emt 0:04:42]} Rd8 {[%emt 0:02:53]} 29. Ra5 {[%emt 0:02:04]} Red7 {[%emt 0:03:46]} 30. Rd4 {[%emt 0:07:19]} Ke7 {[%emt 0:03:34]} 31. b5 {[%emt 0:02:56]} axb5 {[%emt 0:01:09]} 32. Rxb5 {[%emt 0:00:04]} Rc7 {[%emt 0:10:21]} 33. Rdb4 {[%emt 0:01:20]} Rb8 {[%emt 0:01:23]} 34. Nc5 {[%emt 0:00:40]} Rcc8 {[%emt 0:02:21]} 35. Rxb7+ {[%emt 0:04:13]} Rxb7 {[%emt 0:00:09]} 36. Rxb7+ {[%emt 0:00:02]} Ke8 {[%emt 0:00:29]} 37. Nb3 {[%emt 0:10:17]} Ne4 {[%emt 0:01:37]} 38. Ke2 {[%emt 0:01:27]} Rd8 {[%emt 0:01:16]} 39. Nd2 {[%emt 0:00:53]} Nc5 {[%emt 0:00:26]} 40. Ra7 {[%emt 0:03:53]} Ne6 {[%emt 0:01:19]} 41. g3 {[%emt 0:00:51]} Rb8 {[%emt 0:01:24]} 42. b3 {[%emt 0:01:15]} d4 {[%emt 0:01:11]} 43. c4 {[%emt 0:03:38]} Nc5 {[%emt 0:00:11]} 44. Ra5 {[%emt 0:01:48]} Nxb3 {[%emt 0:02:07]} 45. Rb5 {[%emt 0:00:23]} Rxb5 {[%emt 0:00:12]} 46. cxb5 {[%emt 0:00:00]} Nc5 {[%emt 0:00:13]} 47. Nf3 {[%emt 0:00:18]} d3+ {[%emt 0:01:14]} 48. Ke3 {[%emt 0:00:22]} Kd7 {[%emt 0:00:49]} 49. Ne5+ {[%emt 0:00:08]} Kc7 {[%emt 0:00:13]} 50. Nxd3 {[%emt 0:00:54]} Ne6 {[%emt 0:00:10]} 51. Ne5 {[%emt 0:00:19]} Kb6 {[%emt 0:00:04]} 52. Nxf7 {[%emt 0:00:22]} Kxb5 {[%emt 0:00:03]} 53. Ne5 {[%emt 0:00:05]} g5 {[%emt 0:00:25]} 54. Ke4 {[%emt 0:00:20]} Kc5 {[%emt 0:00:05]} 55. Kf5 {[%emt 0:00:03]} Kd5 {[%emt 0:00:05]} 56. Nf3 {[%emt 0:00:43]} h4 {[%emt 0:00:27]} (56... g4 $142 57. hxg4 Ng7+ 58. Kg5 hxg4 59. Kxg4 Ne8) 57. Nxg5 {[%emt 0:00:27]} hxg3 {[%emt 0:00:13]} 58. fxg3 {[%emt 0:00:23]} Ng7+ {[%emt 0:00:06]} 59. Kg6 {[%emt 0:00:06]} Ne8 {[%emt 0:00:07]} 60. h4 {[%emt 0:00:38]} Ke5 {[%emt 0:00:15]} 61. h5 {[%emt 0:01:05]} Nf6 {[%emt 0:00:13]} 62. h6 {[%emt 0:00:42]} Ne8 {[%emt 0:00:10]} 1-0

[Event "8th Gibraltar U16-Junior 2018"]
[Site "Caleta"]
[Date "2018.08.19"]
[Round "4"]
[White "Jayawarna, Nugith"]
[Black "Moreby, James"]
[Result "1/2-1/2"]
[ECO "A37"]
[WhiteElo "2013"]
[BlackElo "2084"]
[Annotator "NA RC"]
[PlyCount "24"]
[EventDate "2018.08.17"]
[EventType "swiss"]
[EventCountry "GGB"]
[SourceTitle "playchess.com"]
[Source "ChessBase"]
[SourceQuality "1"]
[TimeControl "6600+10"]

{[%evp 15,24,-8,-6,-10,-8,-20,-8,-22,-1,-24,29]} 1. Nf3 {[%emt 0:00:00]} c5 {[%emt 0:00:02]} 2. c4 {[%emt 0:00:43]} Nc6 {[%emt 0:00:07]} 3. Nc3 {[%emt 0:00:35]} g6 {[%emt 0:00:17]} 4. g3 {[%emt 0:00:11]} Bg7 {[%emt 0:00:06]} 5. Bg2 {[%emt 0:00:06]} e5 {[%emt 0:01:29]} 6. O-O {[%emt 0:02:31]} Nge7 {[%emt 0:00:33]} 7. Ne1 {[%emt 0:06:29]} O-O {[%emt 0:01:27]} 8. d3 {[%emt 0:02:45]} d6 {[%emt 0:00:29]} 9. Nc2 {[%emt 0:00:36] LiveBook: 203 Games} Be6 {[%emt 0:01:35]} 10. Ne3 {[%emt 0:00:46]} Rb8 {[%emt 0:01:48]} 11. Ned5 {[%emt 0:04:40]} a6 {[%emt 0:04:09]} 12. a4 {[%emt 0:01:50]} h6 $11 {[%emt 0:13:12]} 1/2-1/2

[Event "8th Gibraltar U16-Junior 2018"]
[Site "Caleta"]
[Date "2018.08.19"]
[Round "4"]
[White "Ledesma Claros, Daniel"]
[Black "Perez Beltran, Salvador"]
[Result "1/2-1/2"]
[ECO "B91"]
[WhiteElo "1954"]
[BlackElo "2018"]
[Annotator "NA RC"]
[PlyCount "84"]
[EventDate "2018.08.17"]
[EventType "swiss"]
[EventCountry "GGB"]
[SourceTitle "playchess.com"]
[Source "ChessBase"]
[SourceQuality "1"]
[TimeControl "6600+10"]

1. e4 {[%emt 0:00:00]} c5 {[%emt 0:00:00]} 2. Nc3 {[%emt 0:00:00]} a6 {[%emt 0:00:06]} 3. g3 {[%emt 0:00:02]} b5 {[%emt 0:00:06]} 4. Bg2 {[%emt 0:00:04]} Bb7 {[%emt 0:00:03]} 5. Nge2 {[%emt 0:00:06]} e6 {[%emt 0:00:08]} 6. O-O {[%emt 0:00:26]} d6 {[%emt 0:01:42]} 7. d4 {[%emt 0:04:30]} cxd4 {[%emt 0:08:19]} 8. Nxd4 {[%emt 0:00:07]} Nf6 {[%emt 0:01:25]} 9. Bg5 {[%emt 0:16:24] LiveBook: 5 Games B91: Sicilian Najdorf: 6 g3} (9. Re1 Nbd7 10. e5 Bxg2 11. exf6 Bb7 12. fxg7 Bxg7 13. Nxe6 fxe6 14. Rxe6+ Kf8 15. Rxd6 Qc8 16. Rxd7 Qc6 17. Qd5 Qxd5 18. Nxd5 Bc6 19. Rd6 Rc8 20. Nb6 Rc7 21. Bf4 Bxb2 22. Re1 Kf7 23. Rde6 {1-0 (23) Artemiev,V (2691)-Korobov,A (2652) Riadh 2017}) 9... Nbd7 {[%emt 0:05:55]} 10. Re1 {[%emt 0:17:23]} Qc7 {[%emt 0:44:08]} 11. a4 {[%emt 0:03:53]} bxa4 {[%emt 0:08:59]} 12. Nd5 {[%emt 0:10:50]} exd5 {[%emt 0:16:06]} 13. exd5+ {[%emt 0:00:32]} Ne5 {[%emt 0:00:54]} 14. Bxf6 {[%emt 0:16:06]} gxf6 {[%emt 0:00:16]} 15. f4 $146 {[%emt 0:00:24]} O-O-O {[%emt 0:01:55]} 16. fxe5 {[%emt 0:01:52]} dxe5 {[%emt 0:00:27]} 17. Qg4+ {[%emt 0:00:36]} Qd7 {[%emt 0:08:23]} 18. Qxd7+ {[%emt 0:05:50]} Rxd7 $11 {[%emt 0:00:36]} 19. Nc6 {[%emt 0:03:00]} Bxc6 {[%emt 0:00:10]} 20. dxc6 {[%emt 0:00:09]} Bc5+ {[%emt 0:00:11]} 21. Kf1 {[%emt 0:01:29]} Rd2 {[%emt 0:00:24]} 22. Re2 {[%emt 0:00:10]} Rhd8 {[%emt 0:00:53]} 23. Bh3+ {[%emt 0:00:16]} Kc7 {[%emt 0:00:52]} 24. Bd7 {[%emt 0:00:20]} Rxe2 {[%emt 0:06:21]} 25. Kxe2 {[%emt 0:00:11]} Rb8 {[%emt 0:00:04]} 26. Rxa4 {[%emt 0:05:35]} Rxb2 {[%emt 0:00:10]} 27. Rc4 {[%emt 0:05:59]} Bd4 {[%emt 0:02:02]} 28. Bf5 {[%emt 0:01:03]} h6 {[%emt 0:00:30]} 29. h4 {[%emt 0:01:02]} a5 {[%emt 0:00:27]} 30. Be4 {[%emt 0:01:37]} Ra2 {[%emt 0:00:20]} 31. Bd5 {[%emt 0:00:59]} Ra3 {[%emt 0:00:04]} 32. c3 {[%emt 0:04:12]} Rxc3 {[%emt 0:00:32]} 33. Rxc3 {[%emt 0:00:17]} Bxc3 {[%emt 0:00:01]} 34. Kf3 {[%emt 0:01:04]} Kd6 {[%emt 0:01:05]} 35. g4 {[%emt 0:01:03]} Be1 {[%emt 0:00:31]} 36. h5 {[%emt 0:00:28]} Bd2 {[%emt 0:01:05]} 37. Ke4 {[%emt 0:00:24]} a4 {[%emt 0:00:26]} 38. Kf5 {[%emt 0:05:29]} Bg5 {[%emt 0:00:11]} 39. Ke4 {[%emt 0:00:16]} Bd2 {[%emt 0:00:06]} 40. Kf5 {[%emt 0:00:21]} Bg5 {[%emt 0:00:02]} 41. Ke4 {[%emt 0:00:02]} Bd2 {[%emt 0:00:01]} 42. Kf5 {[%emt 0:00:03]} Bg5 {[%emt 0:00:21]} 1/2-1/2

[Event "8th Gibraltar U16-Junior 2018"]
[Site "Caleta"]
[Date "2018.08.19"]
[Round "4"]
[White "Ifalore, Michael"]
[Black "Shepherd, Tom"]
[Result "1-0"]
[ECO "D02"]
[WhiteElo "1881"]
[BlackElo "1531"]
[Annotator "NA"]
[PlyCount "55"]
[EventDate "2018.08.17"]
[EventType "swiss"]
[EventCountry "GGB"]
[SourceTitle "playchess.com"]
[Source "ChessBase"]
[SourceQuality "1"]
[TimeControl "6600+10"]

{[%evp 12,48,-8,0,7,-22,44,45,28,46,45,42,45,50,44,51,125,93,568,571,549,583,564,32767,32767,32767,32767,32767,672,471,716,550,663,704,644,234,231,267,317]} 1. d4 {[%emt 0:00:00]} d5 {[%emt 0:00:00]} 2. Nf3 {[%emt 0:00:04]} Nf6 {[%emt 0:00:00]} 3. g3 {[%emt 0:00:18]} c5 {[%emt 0:02:05]} 4. dxc5 {[%emt 0:02:53]} e6 {[%emt 0:03:15]} 5. Bg2 {[%emt 0:06:11]} Bxc5 {[%emt 0:00:36]} 6. c4 {[%emt 0:00:21] D02: Damenbauernspiele} Nc6 {[%emt 0:08:44]} 7. cxd5 {[%emt 0:03:06]} Qxd5 {[%emt 0:05:14]} (7... exd5 8. O-O O-O 9. Nbd2 Bb6 10. Nb3 d4 11. Bf4 Re8 12. Qd3 Bg4 13. Rfd1 Qe7 14. h3 Nb4 15. Qb5 d3 16. exd3 Bd7 17. Qg5 h6 {0-1 (41) Stupak,K (2502)-Sutovsky,E (2665) Plovdiv 2010}) 8. Bd2 $146 {[%emt 0:03:08]} ({Vorgänger:} 8. O-O Qxd1 9. Rxd1 h6 10. Nc3 a6 11. a3 O-O 12. b4 Bb6 13. Bb2 Bd7 {1-0 (55) Koszo,A (1806)-Botta,J (1955) Hungary 2010}) 8... Ne4 {[%emt 0:09:58]} 9. O-O {[%emt 0:00:09]} Nxd2 {[%emt 0:00:30]} 10. Nfxd2 {[%emt 0:00:07]} Qd7 {[%emt 0:00:58]} 11. Qc2 {[%emt 0:00:08]} Be7 {[%emt 0:00:47]} 12. Nc3 {[%emt 0:01:48]} Nb4 {[%emt 0:07:14]} 13. Qc1 {[%emt 0:00:57]} Bf6 {[%emt 0:06:44]} ({Black should try} 13... O-O $14) 14. Nde4 {[%emt 0:01:17]} O-O $2 {[%emt 0:01:40]} (14... Be5 $16 {is tougher.}) 15. Nxf6+ gxf6 {[%emt 0:00:04]} 16. Qh6 {[%emt 0:00:33]} f5 {[%emt 0:00:46]} 17. Qg5+ {[%emt 0:01:27]} Kh8 {[%emt 0:00:10]} 18. Qf6+ {[%emt 0:00:03]} Kg8 {[%emt 0:00:11]} 19. Rfd1 {[%emt 0:00:08]} Qe8 {[%emt 0:00:56]} 20. h4 {[%emt 0:01:19]} Nc6 {[%emt 0:01:35]} (20... Bd7 $142 21. Rd6 (21. Bxb7 Rb8 $18) 21... Bc6) 21. Bxc6 {[%emt 0:00:46]} bxc6 {[%emt 0:00:39]} 22. h5 {[%emt 0:00:04]} h6 {[%emt 0:00:08]} 23. Qxh6 $2 {[%emt 0:06:39]} (23. Rd6) 23... f6 {[%emt 0:01:38]} 24. e4 {[%emt 0:00:32]} e5 $18 {[%emt 0:01:32]} 25. Rd6 {[%emt 0:00:46]} Qe7 {[%emt 0:00:32]} 26. Rxc6 {[%emt 0:02:00]} Bb7 {[%emt 0:00:29]} 27. Nd5 {[%emt 0:00:12]} Qg7 {[%emt 0:00:51]} 28. Nxf6+ {[%emt 0:00:10]} 1-0

[Event "8th Gibraltar U16-Junior 2018"]
[Site "Caleta"]
[Date "2018.08.19"]
[Round "4"]
[White "Howell, Oliver W"]
[Black "Chouki, Aali"]
[Result "1-0"]
[ECO "A10"]
[WhiteElo "1853"]
[BlackElo "1413"]
[Annotator "NA RC"]
[PlyCount "47"]
[EventDate "2018.08.17"]
[EventType "swiss"]
[EventCountry "GGB"]
[SourceTitle "playchess.com"]
[Source "ChessBase"]
[SourceQuality "1"]
[TimeControl "6600+10"]

{[%evp 16,33,52,65,63,46,66,19,77,75,88,70,159,180,168,162,264,138,154,180]} 1. Nf3 {[%emt 0:00:00]} d5 {[%emt 0:00:00]} 2. c4 {[%emt 0:00:04]} c6 {[%emt 0:00:08]} 3. g3 {[%emt 0:00:15]} e6 {[%emt 0:00:06]} 4. Bg2 {[%emt 0:00:06]} f5 {[%emt 0:00:10]} 5. O-O {[%emt 0:00:53]} Nf6 {[%emt 0:00:23]} 6. b3 {[%emt 0:07:49]} Bd6 {[%emt 0:01:16]} 7. Bb2 {[%emt 0:01:07]} O-O {[%emt 0:00:57]} 8. d3 {[%emt 0:02:27]} Qe8 {[%emt 0:01:44]} 9. Nbd2 {[%emt 0:02:55]} Nbd7 {[%emt 0:02:19]} 10. Re1 {[%emt 0:04:47]} Bc5 {[%emt 0:13:27]} 11. e4 {[%emt 0:09:01]} fxe4 {[%emt 0:02:38]} 12. dxe4 {[%emt 0:01:12]} Ng4 {[%emt 0:03:07]} 13. Re2 {[%emt 0:03:26]} Nxf2 {[%emt 0:03:16]} (13... e5 $14) 14. Rxf2 {[%emt 0:00:26]} Bxf2+ {[%emt 0:00:08]} 15. Kxf2 {[%emt 0:00:28]} Qf7 {[%emt 0:05:06]} (15... b6 $142 16. Kg1 Bb7 17. exd5 cxd5) 16. cxd5 {[%emt 0:05:53]} (16. Kg1 $18) 16... exd5 {[%emt 0:00:48]} 17. Kg1 $18 {[%emt 0:01:34]} Nb6 {[%emt 0:12:22]} 18. Qc2 {[%emt 0:18:17]} dxe4 {[%emt 0:11:44]} 19. Nxe4 {[%emt 0:02:21]} Bf5 {[%emt 0:00:24]} 20. Nh4 {[%emt 0:06:07]} Rad8 {[%emt 0:10:27]} 21. Rf1 {[%emt 0:06:14]} Bxe4 {[%emt 0:06:25]} 22. Rxf7 {[%emt 0:01:10]} Bxc2 {[%emt 0:00:07]} 23. Rxg7+ {[%emt 0:00:23]} Kh8 {[%emt 0:00:07]} 24. Rg4+ {[%emt 0:00:47]} 1-0

[Event "8th Gibraltar U16-Junior 2018"]
[Site "Caleta"]
[Date "2018.08.19"]
[Round "4"]
[White "Samworth-Calvier, Juju"]
[Black "Cox, Ben"]
[Result "1/2-1/2"]
[ECO "B26"]
[WhiteElo "1816"]
[BlackElo "1466"]
[Annotator "NA RC"]
[PlyCount "40"]
[EventDate "2018.08.17"]
[EventType "swiss"]
[EventCountry "GGB"]
[SourceTitle "playchess.com"]
[Source "ChessBase"]
[SourceQuality "1"]
[TimeControl "6600+10"]

{[%evp 20,40,-11,-10,0,0,37,30,34,28,29,23,25,18,26,20,31,21,45,41,45,0,29]} 1. e4 {[%emt 0:00:00]} c5 {[%emt 0:00:00]} 2. Nc3 {[%emt 0:00:00]} Nc6 {[%emt 0:00:11]} 3. g3 {[%emt 0:00:00]} d6 {[%emt 0:00:21]} 4. Bg2 {[%emt 0:00:00]} Nf6 {[%emt 0:00:48]} 5. d3 {[%emt 0:00:05]} g6 {[%emt 0:00:17]} 6. Be3 {[%emt 0:00:11]} Bg7 {[%emt 0:00:10]} 7. Qd2 {[%emt 0:00:04]} O-O {[%emt 0:01:21] B26: Closed Sicilian: 3 g3, lines with early Be3} 8. Bh6 {[%emt 0:00:27]} Qa5 {[%emt 0:02:13]} (8... Rb8 9. Bxg7 Kxg7 10. Nge2 b5 11. O-O b4 12. Nd1 Nd4 13. c3 bxc3 14. bxc3 Nxe2+ 15. Qxe2 {0-1 (58) Rudyk,I (2163)-Goganov,A (2581) St Petersburg 2013}) 9. h4 $146 {[%emt 0:01:24]} ({Predecessor:} 9. Nf3 Bd7 10. O-O b5 11. Nd1 Qxd2 12. Bxd2 Rfc8 13. c3 a5 14. Ne3 b4 15. c4 {0-1 (60) Starke,L (1295)-Sonnhalter,S (1426) Stuttgart 2007}) 9... Bxh6 {[%emt 0:07:23]} 10. Qxh6 {[%emt 0:00:07]} Nd4 {[%emt 0:01:58]} 11. Qd2 {[%emt 0:00:51]} Be6 {[%emt 0:02:56]} 12. Nge2 {[%emt 0:01:09]} Nxe2 {[%emt 0:04:30]} 13. Nxe2 {[%emt 0:00:55]} Qxd2+ {[%emt 0:00:57]} 14. Kxd2 {[%emt 0:00:06]} d5 {[%emt 0:02:02]} 15. exd5 {[%emt 0:00:30]} Bxd5 {[%emt 0:00:31]} 16. Bxd5 {[%emt 0:00:09]} Nxd5 {[%emt 0:00:08]} 17. Rhe1 {[%emt 0:00:23]} e6 {[%emt 0:01:08]} 18. Nc3 {[%emt 0:00:11]} Rfe8 {[%emt 0:01:21]} 19. Ne4 {[%emt 0:00:50]} Rec8 $1 {[%emt 0:01:40]} 20. Nc3 {[%emt 0:01:50]} (20. h5 $5) 20... Nxc3 $11 {[%emt 0:04:51]} 1/2-1/2